Cogmind - Beta 13 X2 --- EXPLORER MODE // 2024.02.01 @ 10:15:51 Player: arkn Result: Self-destructed Performance ------------- Evolutions (2) 1000 Regions Visited (5) 1000 Robots Destroyed (25) 125 Value Destroyed (493) 493 Prototype IDs (23) 460 Alien Tech Used (0) 0 Bonus (414) 414 TOTAL SCORE: 3492 Bonus ------- Follower Combat Kills 120 Aligned with FarCom 300 Friendly Fire -6 Cogmind --------- Core Integrity 548/550 Matter 211/300 Energy 240/240 System Corruption 0% Temperature Cool (0) Movement Walking (110) Location -8/Materials Parts ------- > --- POWER (1) -------- Nuclear Core > --- PROPULSION (3) --- Aluminum Leg Carbon-fiber Leg VSS Leg > --- UTILITY (6) ------ Improved Heat Sink Lightpack 2.0 Targeting Computer Propulsion Shielding > --- WEAPON (2) ------- Pulse Rifle High-powered Shotgun > --- INVENTORY (40) --- Ion Engine Ion Engine Light Nuclear Core Light Treads Aluminum Leg Aluminum Leg Large Storage Unit Advanced Visual Processing Unit Advanced Visual Processing Unit ECM Suite Heavy Armor Plating Heavy Armor Plating Heavy Armor Plating Heavy Armor Plating Reflective Plating Pulse Rifle Pulse Rifle Light Assault Rifle Minigun Light Cannon Shock Bomb Launcher Grenade Launcher Rocket Launcher Missile Launcher Mining Claw Peak State ------------ > --- POWER ------------ Nuclear Core > --- PROPULSION ------- Aluminum Leg Carbon-fiber Leg VSS Leg > --- UTILITY ---------- Improved Heat Sink Lightpack 2.0 Targeting Computer Propulsion Shielding > --- WEAPON ----------- Pulse Rifle High-powered Shotgun > --- INVENTORY -------- Ion Engine Ion Engine Light Nuclear Core Light Treads Aluminum Leg Aluminum Leg Large Storage Unit Advanced Visual Processing Unit Advanced Visual Processing Unit ECM Suite Heavy Armor Plating Heavy Armor Plating Heavy Armor Plating Heavy Armor Plating Pulse Rifle Pulse Rifle Light Assault Rifle Minigun Light Cannon Shock Bomb Launcher Grenade Launcher Rocket Launcher Missile Launcher Mining Claw [Rating: 57] Favorites ----------- Power Light Nuclear Core Engine Ion Engine Power Core Light Nuclear Core Propulsion Aluminum Leg Leg Aluminum Leg Utility Targeting Computer Device Improved Heat Sink Storage Large Storage Unit Processor Targeting Computer Protection Propulsion Shielding Weapon Medium Laser Energy Gun Medium Laser Ballistic Gun Light Assault Rifle Ballistic Cannon Light Cannon Launcher Rocket Launcher Build | -11 -10 -10 -10 -9 -8 ------- Run | Yrd Mat Min Exi Min Mat Slots Evolved 5 | . 1 . . . 4 Power . | . . . . . . Propulsion 1 | . . . . . 1 Utility 4 | . 1 . . . 3 Weapon . | . . . . . . Parts Attached 22 | . 8 4 . 1 9 Power 2 | . . 1 . . 1 Engine . | . . . . . . Core 2 | . . 1 . . 1 Reactor . | . . . . . . Propulsion 5 | . 1 1 . . 3 Treads . | . . . . . . Leg 5 | . 1 1 . . 3 Wheel . | . . . . . . Hover . | . . . . . . Flight . | . . . . . . Utility 8 | . 6 . . . 2 Device 1 | . . . . . 1 Storage 4 | . 3 . . . 1 Processor 1 | . 1 . . . . Hackware . | . . . . . . Protection 2 | . 2 . . . . Artifact . | . . . . . . Weapon 7 | . 1 2 . 1 3 Energy Gun 2 | . 1 . . . 1 Energy Cannon . | . . . . . . Ballistic Gun 1 | . . . . . 1 Ballistic Cannon 1 | . . . . 1 . Launcher 3 | . . 2 . . 1 Special Weapon . | . . . . . . Impact Weapon . | . . . . . . Slashing Weapon . | . . . . . . Piercing Weapon . | . . . . . . Special Melee Weapon . | . . . . . . Unidentified Prototypes . | . . . . . . Parts Lost 1 | . 1 . . . . Power . | . . . . . . Propulsion . | . . . . . . Utility 1 | . 1 . . . . Weapon . | . . . . . . Highest Loss Streak 1 | . 1 . . . . To Critical Strikes . | . . . . . . Average Slot Usage (%) 93 | . 100 95 87 92 83 Engine 4 | . 12 2 . . . Core 6 | . . 9 12 12 8 Leg 25 | . 25 25 25 25 25 Device 1 | . . . . . 8 Storage 11 | . 12 12 12 12 8 Processor 11 | . 12 12 12 12 8 Protection 11 | . 12 12 12 12 8 Energy Gun 11 | . 12 12 12 12 8 Ballistic Gun 6 | . 12 6 . . 1 Ballistic Cannon 1 | . . . . 4 4 Naked Turns . | . . . . . . Heaviest Build 32 | 20 31 32 28 31 20 Greatest Support 37 | 20 20 20 20 20 37 Greatest Overweight (x) 1 | . 1 1 1 1 . Average Overweight (x) . | . . 1 1 1 . Largest Inventory Capacity 40 | . 20 15 15 15 40 Average Capacity 18 | . 12 15 15 15 39 Most Carried 29 | . 13 15 15 15 29 Average Carried 13 | . 10 13 14 14 19 Final Capacity 40 | 10 15 15 15 15 40 Final Carried 29 | 7 12 15 15 14 29 Class Distribution -------------------- 80% | Hacker-Mutant 19% | Hauler-Mutant Dominant Class ---------------- Hacker-Mutant | -10/Materials Hacker-Mutant | -10/Mines Hacker-Mutant | -10/Exiles Hacker-Mutant | -9/Mines Hauler-Mutant | -8/Materials Resources | -11 -10 -10 -10 -9 -8 ----------- Run | Yrd Mat Min Exi Min Mat Matter Collected 530 | 160 153 92 . 22 103 Remotely . | . . . . . . Salvage Created 634 | . 402 . . 56 176 Parts 40 | . 25 . . 3 12 Haulers Intercepted 3 | . 1 . . . 2 Recyclers Shooed 1 | . . . . 1 . Parts Field Recycled . | . . . . . . Retrieved Matter . | . . . . . . Parts Self-Destructed . | . . . . . . Prevented . | . . . . . . Kills | -11 -10 -10 -10 -9 -8 ------- Run | Yrd Mat Min Exi Min Mat Combat Hostiles Destroyed 15 | . 8 . . 2 5 Guns 10 | . 7 . . 1 2 Cannons 2 | . . . . 1 1 AOE 2 | . . . . . 2 Classes Destroyed 7 | . 4 . . 1 2 Tunneler 1 | . . . . 1 . Hauler 3 | . 1 . . . 2 Operator 2 | . . . . . 2 Watcher 4 | . 3 . . . 1 Swarmer 8 | . 2 . . 2 4 Grunt 6 | . 6 . . . . Hunter 1 | . . . . . 1 Best Kill Streak 2 | . 2 . . 2 2 Combat Bots Only 2 | . 2 . . 2 2 Max Kills in Single Turn 2 | . 1 . . 1 2 Gunslinging . | . . . . . . Exploded 2 | . . . . . 2 Melee . | . . . . . . Uniques/NPCs Destroyed . | . . . . . . Combat | -11 -10 -10 -10 -9 -8 -------- Run | Yrd Mat Min Exi Min Mat Hostile Shots Fired 84 | . 47 16 . 11 10 Missed 26 | . 11 5 . 6 4 Damage Taken 477 | . 308 86 . 24 59 Core 53 | . 34 8 . 9 2 Absorbed by Shields . | . . . . . . Redirected to Shielding 8 | . . 3 . 1 4 Ignored by Resistances 305 | . 194 55 . 18 38 Core Remaining (%) 89 | 100 . . . 79 . Volleys Fired 72 | . 43 7 . 4 18 Largest 2 | . 2 2 . 2 2 Hottest 88 | . 70 70 . 85 88 Shots Fired 130 | . 81 13 . 6 30 Gun 113 | . 81 10 . 4 18 Cannon 9 | . . . . 2 7 Launcher 8 | . . 3 . . 5 Special . | . . . . . . Kinetic 63 | . 43 5 . 2 13 Thermal 59 | . 38 5 . 4 12 Explosive 8 | . . 3 . . 5 Electromagnetic . | . . . . . . Robot Hit Streak 40 | . 40 12 . 4 22 Robot Miss Streak 2 | . 2 1 . . 1 Penetration Max . | . . . . . . Secondary Targets 2 | . 2 . . . . Max Gunslinging Chain 1 | . 1 . . . . Shots Hit Robots 103 | . 66 9 . 4 24 Core Hits 43 | . 24 3 . 3 13 Critical Kills . | . . . . . . Critical Parts Destroyed . | . . . . . . Critical Strikes 3 | . 3 . . . . Burn 3 | . 3 . . . . Melee Attacks . | . . . . . . Impact . | . . . . . . Slashing . | . . . . . . Piercing . | . . . . . . Sneak Attacks . | . . . . . . Combat Hostiles . | . . . . . . Follow-up Attacks . | . . . . . . Damage Inflicted 1549 | . 686 119 . 67 677 Guns 1093 | . 686 86 . 37 284 Cannons 120 | . . . . 16 104 Explosions 308 | . . 23 . . 285 Melee . | . . . . . . Ramming 28 | . . 10 . 14 4 Kinetic 541 | . 264 36 . 16 225 Thermal 672 | . 422 50 . 37 163 Explosive 308 | . . 23 . . 285 Electromagnetic . | . . . . . . Impact . | . . . . . . Slashing . | . . . . . . Piercing . | . . . . . . Highest Corruption 1 | . 1 1 1 1 . Average Corruption 1 | . 1 1 1 1 . Corruption Purged . | . . . . . . Corruption Blocked . | . . . . . . Effects 15 | . 1 11 3 . . Message Errors 2 | . 1 1 . . . Matter Fused 2 | . . 1 1 . . Heat Flow Errors 2 | . . 2 . . . Energy Discharges 3 | . . 3 . . . Parts Fused 1 | . . 1 . . . Data Loss (minor) 3 | . . 1 2 . . Misfires 2 | . . 2 . . . Overload Shots . | . . . . . . Overflow Damage . | . . . . . . Projectiles . | . . . . . . Explosions . | . . . . . . Melee . | . . . . . . Knockbacks 2 | . . . . . 2 Impact . | . . . . . . Kinetic 2 | . . . . . 2 Secondary . | . . . . . . Self-Inflicted Damage 6 | . . . . . 6 Shots 1 | . . . . . 1 Rammed . | . . . . . . Targets Rammed 4 | . . 1 . 2 1 Kicked 4 | . . 1 . 2 1 Crushed . | . . . . . . Highest Temperature 286 | . 286 275 . 70 . Average Temperature 99 | . 107 92 . 30 . Received Heat Transfer 249 | . 228 21 . . . Siege Activations . | . . . . . . Robots Corrupted . | . . . . . . Combat Hostiles . | . . . . . . Parts Fried . | . . . . . . Impact Corruptions . | . . . . . . Robots Melted 1 | . 1 . . . . Combat Hostiles 1 | . 1 . . . . Parts Melted 2 | . 2 . . . . Heat Transferred 2110 | . 1444 148 . 111 407 Parts Sabotaged . | . . . . . . Parts Stolen . | . . . . . . Parts Stripped . | . . . . . . Power Chain Reactions . | . . . . . . Missiles Intercepted . | . . . . . . Alert | -11 -10 -10 -10 -9 -8 ------- Run | Yrd Mat Min Exi Min Mat Peak Influence 161 | . 161 102 . 55 147 Initial 14 | . . 11 . . 14 Average 45 | . 36 42 . 19 80 Maximum Alert Level . | . . . . . . Low Security (%) 100 | . 100 100 . 100 100 Level 1 . | . . . . . . Level 2 . | . . . . . . Level 3 . | . . . . . . Level 4 . | . . . . . . Level 5 . | . . . . . . High Security . | . . . . . . Max Security . | . . . . . . Squads Dispatched 1 | . . . . . 1 Investigation . | . . . . . . Extermination . | . . . . . . Reinforcement 1 | . . . . . 1 Assault . | . . . . . . Garrison . | . . . . . . Intercept . | . . . . . . Searches Triggered . | . . . . . . Construction Impeded 1 | . . . . . 1 Haulers Reinforced . | . . . . . . Active Scanning Responses . | . . . . . . Cargo Convoy Interrupts . | . . . . . . Stealth | -11 -10 -10 -10 -9 -8 --------- Run | Yrd Mat Min Exi Min Mat Distress Signals 3 | . 1 . . . 2 Communications Jammed . | . . . . . . Distress Signals . | . . . . . . Times Spotted 29 | . 12 6 . 2 9 Peak Tracking Total 4 | . 3 4 . 2 2 Tactical Retreats 1 | . . . . . 1 Traps | -11 -10 -10 -10 -9 -8 ------- Run | Yrd Mat Min Exi Min Mat Traps Triggered 5 | . 5 . . . . Indirectly . | . . . . . . Trap Hack Attempts . | . . . . . . Triggered . | . . . . . . Disarmed . | . . . . . . Reprogrammed . | . . . . . . Reused . | . . . . . . Traps Extracted . | . . . . . . Installed . | . . . . . . Triggered . | . . . . . . Machines | -11 -10 -10 -10 -9 -8 ---------- Run | Yrd Mat Min Exi Min Mat Machines Disabled 1 | . . . . . 1 Max in Single Turn 1 | . . . . . 1 Machines Repaired . | . . . . . . Machines Dismantled . | . . . . . . Machines Sabotaged . | . . . . . . Overloaded Fab Kills . | . . . . . . Hacking | -11 -10 -10 -10 -9 -8 --------- Run | Yrd Mat Min Exi Min Mat Machines Accessed 4 | . 1 . 1 . 2 Terminals 2 | . . . . . 2 Fabricators . | . . . . . . Repair Stations . | . . . . . . Recycling Units 1 | . 1 . . . . Scanalyzers . | . . . . . . Garrison Access . | . . . . . . Total Hacks 8 | . 1 . 1 . 6 Successful 5 | . 1 . 1 . 3 Failed 3 | . . . . . 3 Catastrophic 1 | . . . . . 1 Database Lockouts . | . . . . . . Manual 7 | . . . 1 . 6 Terminals 6 | . . . . . 6 Fabricators . | . . . . . . Repair Stations . | . . . . . . Recycling Units 1 | . 1 . . . . Scanalyzers . | . . . . . . Garrison Access . | . . . . . . Terminal Hacks 3 | . . . 1 . 2 Terminal Index 1 | . . . . . 1 Fabricator Index 1 | . . . . . 1 Derelict Proto ID Bank 1 | . . . 1 . . Fabricator Hacks . | . . . . . . Repair Station Hacks . | . . . . . . Recycling Unit Hacks 1 | . 1 . . . . Retrieve Components 1 | . 1 . . . . Scanalyzer . | . . . . . . Garrison Access Hacks . | . . . . . . Unauthorized Hacks 1 | . . . . . 1 Terminals 1 | . . . . . 1 Botnet 1 | . . . . . 1 Fabricators . | . . . . . . Repair Stations . | . . . . . . Recycling Units . | . . . . . . Scanalyzers . | . . . . . . Garrison Access . | . . . . . . Data Cores Recovered 1 | . . . . . 1 Used . | . . . . . . Hacking Detections 2 | . . . . . 2 Full Trace Events 1 | . . . . . 1 Feedback Events . | . . . . . . Feedback Blocked . | . . . . . . Robot Schematics Acquired . | . . . . . . Robots Built . | . . . . . . Authchips . | . . . . . . Time . | . . . . . . Total Robot Build Rating . | . . . . . . Part Schematics Acquired . | . . . . . . Parts Built . | . . . . . . Authchips . | . . . . . . Time . | . . . . . . Total Part Build Rating . | . . . . . . Parts Repaired . | . . . . . . Time . | . . . . . . Parts Recycled . | . . . . . . Recycled Matter . | . . . . . . Retrieved Matter . | . . . . . . Retrieved Components 2 | . 2 . . . . Parts Scanalyzed . | . . . . . . Part Schematics Acquired . | . . . . . . Parts Damaged . | . . . . . . Bothacking | -11 -10 -10 -10 -9 -8 ------------ Run | Yrd Mat Min Exi Min Mat Used RIF Installer . | . . . . . . Robots Hacked . | . . . . . . Non-combat . | . . . . . . Combat . | . . . . . . Robot Hacks Applied . | . . . . . . Relay Couplers Released . | . . . . . . Fabnet Peak Effective % . | . . . . . . Robots Rewired . | . . . . . . Allies Hacked . | . . . . . . Hacks Repelled . | . . . . . . Allies | -11 -10 -10 -10 -9 -8 -------- Run | Yrd Mat Min Exi Min Mat Total Allies 3 | . . 3 . . . Largest Group 3 | . . 3 1 1 . Highest-Rated Group 40 | . . 40 16 16 . Highest-Rated Ally 16 | . . 16 16 16 . Total Orders . | . . . . . . Ally Attacks 22 | . . 22 . . . Total Damage 244 | . . 244 . . . Kills 6 | . . 6 . . . Allies Corrupted . | . . . . . . Allies Melted . | . . . . . . Intel | -11 -10 -10 -10 -9 -8 ------- Run | Yrd Mat Min Exi Min Mat Robot Analysis Total . | . . . . . . Derelict Logs Recovered 1 | . . 1 . . . Drone Launches . | . . . . . . Drone Recoveries . | . . . . . . Exploration | -11 -10 -10 -10 -9 -8 ------------- Run | Yrd Mat Min Exi Min Mat Turns Passed 3228 | . 1156 706 400 332 634 Spaces Moved 1628 | 1 550 356 210 156 355 Core . | . . . . . . Treads . | . . . . . . Legs 1628 | 1 550 356 210 156 355 Wheels . | . . . . . . Hover . | . . . . . . Flight . | . . . . . . Fastest Speed 110 | 120 120 190 190 190 110 Average Speed 170 | 120 183 190 190 190 110 Slowest Speed 190 | 120 190 190 190 190 120 Overloaded Moves . | . . . . . . Propulsion Burnouts . | . . . . . . Robots Hopped . | . . . . . . Cave-ins Triggered . | . . . . . . Exploration Rate (%) 53 | 2 95 92 60 50 23 Regions Visited 5 Branch Regions 3 Pre-discovered Areas . | . . . . . . Known Exits Taken 5 | 1 1 1 1 1 . Unknown Exits Taken . | . . . . . . Scrap Searched . | . . . . . . Spaces Dug 19 | . . . . . 19 Terrain Destroyed 77 | . . 30 . . 47 Melee . | . . . . . . Projectile . | . . . . . . AOE 77 | . . 30 . . 47 Terrain Rammed . | . . . . . . Walls Destroyed . | . . . . . . Machines Disabled . | . . . . . . Actions | -11 -10 -10 -10 -9 -8 --------- Run | Yrd Mat Min Exi Min Mat Total 1961 | . 624 376 213 184 564 Wait 203 | . 12 4 . 22 165 Move 1623 | . 549 355 209 155 355 Hop . | . . . . . . Pick Up 27 | . 9 2 1 . 15 Fast Attach 1 | . 1 . . . . Attach 6 | . 2 . . 1 3 Detach 2 | . . 1 . . 1 Swap 15 | . 5 4 . . 6 Drop 8 | . 3 2 3 . . Fire 72 | . 43 7 . 4 18 Melee . | . . . . . . Ram . | . . . . . . Kick 4 | . . 1 . 2 1 Crush . | . . . . . . Escape Stasis . | . . . . . . Rewire . | . . . . . . Trap . | . . . . . . Miscellaneous . | . . . . . . Route ------- -11/Scrapyard -10/Materials (discovered 4 exits: *Mat x3 / *Min) -10/Mines (discovered 3 exits: *Mat x2 / *Exi) -10/Exiles -9/Mines -8/Materials History --------- Turn | Location | Event 1 | -11/Scrapyard | Identified exit to Materials 1 | -11/Scrapyard | Discovered exit to Materials (range 0) 1 | -11/Scrapyard | Entered Materials 1 | -10/Materials | Evolved 1 slot: Utility x1 311 | -10/Materials | Build established: Hacker-Mutant 421 | -10/Materials | Identified exit to Materials 421 | -10/Materials | Discovered exit to Materials (range 15) 478 | -10/Materials | Identified exit to Mines 478 | -10/Materials | Discovered exit to Mines (range 12) 620 | -10/Materials | Discovered exit to Materials (range 6) 1055 | -10/Materials | Discovered exit to Materials (range 4) 1157 | -10/Materials | Entered Mines 1167 | -10/Mines | Assisted by bots powering up and referring to "LRC-V3" 1291 | -10/Mines | Discovered exit to Materials (range 8) 1460 | -10/Mines | Learned Materials emergency access door positions 1522 | -10/Mines | Assembled infested the area 1570 | -10/Mines | Received a Rocket Launcher from a helpful Derelict 1652 | -10/Mines | Discovered exit to Materials (range 14) 1853 | -10/Mines | Deemed a non-threat by the Exiles lab entrance 1853 | -10/Mines | Identified exit to Exiles 1853 | -10/Mines | Discovered exit to Exiles (range 5) 1863 | -10/Mines | Entered Exiles 1863 | -10/Exiles | Accompanied by 1 ally 1909 | -10/Exiles | Met 8R-AWN 1941 | -10/Exiles | Met EX-HEX 1998 | -10/Exiles | Met EX-BIN 2019 | -10/Exiles | Aligned with FarCom system 2021 | -10/Exiles | Given EX-Vault access code 2069 | -10/Exiles | Opened EX-Vault 2084 | -10/Exiles | Found Lightpack 2.0 2122 | -10/Exiles | Warned to stay clear of 0b10 Research branches 2178 | -10/Exiles | Met EX-DEC 2248 | -10/Exiles | Identified exit to Mines 2248 | -10/Exiles | Discovered exit to Mines (range 10) 2263 | -10/Exiles | Left Exiles lab with Lightpack 2.0 2263 | -10/Exiles | Entered Mines 2263 | -9/Mines | Accompanied by 1 ally 2265 | -9/Mines | Met a Derelict bent on vengeance 2574 | -9/Mines | Identified exit to Materials 2574 | -9/Mines | Discovered exit to Materials (range 12) 2595 | -9/Mines | Entered Materials 2595 | -8/Materials | Evolved 4 slots: Propulsion x1, Utility x3 2897 | -8/Materials | Build established: Hauler-Mutant 3229 | -8/Materials | Self-destructed Last Messages --------------- 03065_ U-05 Engineer builds a Wall. 03074_ The unstable cave ceiling collapses. 03081_ U-05 Engineer builds a Wall. 03081_ U-05 Engineer lays Concrete. 03091_ S-10 Pest destroyed. 03091_ U-05 Engineer lays Concrete. 03093_ U-05 Engineer builds a Wall. 03098_ R-06 Scavenger collects Visual Processing Unit. 03102_ Acquired Hpw. Shotgun. 03154_ Acquired Minigun. 03167_ Penetrated by Slug. 03172_ H-55 Commando destroyed. 03175_ U-05 Engineer builds a Door. 03176_ Acquired 41 matter. 03199_ K-01 Serf collects debris. 03202_ Kicked U-05 Engineer out of the way. 03204_ K-01 Serf collects debris. 03217_ A-02 Transporter destroyed. 03221_ Acquired Missile Launcher. 03223_ Acquired Reflective Plating. Map ----- +----------------------------------------------------+ | ????????#"S # % = ##???????? | | ????????#""" #######+###### ## % ##???????? | | ????????# "" #??? ?#### ###^ ###???????? | | ????????# #??# # # ##????????? | | ????????###### #?#""" # """ # ########### | | ??????????????# ##?#""" # """ + # # | | ???????????????####??#""" # """ # # # | | +????????????????????# # # # """ # | | ?????????????????????######## """ # # """""# | | ????????????????????????????# """ # # """""? | | ????????????????????????????# """ # # """""# | | ????????????????????????????# # # """ # | | ????????????????????????????# # + # | | ????????????????????????????# # ########### | | ????????????????????????????# # #?????????? | | ????????????????????????????######## #?????????? | | ????????????????????????????????#####+#####??????? | | ????????????????????????????????#! #??????? | | ????????????????????????????????# #??????? | | ????????????????????????????????# #??????? | | ????????????????????????????????# #??????? | | ????????????????????????????????# #??????? | | ???????????????????????########## #??????? | | ????????????????Y??????# # #??????? | | ???????????????????????# # [ #??????? | | ???????????????o???????# @] #/#########??????? | | ???????????????????????# ]%!""" # +??????? | | ???????????????????????# """ + #######??????? | | ???????????????????????# """ # #????????????? | | ???????????????????????# """ # #????????????? | | ???????????????????????# # #????????????? | | ???????????????????????# # #????????????? | | ???????????????????????########## #????????????? | | ???????????????????????????????? +????????????? | | ???????????????????????????????? #????????????? | | ???????????????????????????????? #????????????? | | ????????????????????????????????## ##????????????? | | ???????????????????+??????????????+#?????????????? | | ?????????????????????????????????????????????????? | | ?????????????????????????????????????????????????? | | ?????????????????????????????????????????????????? | | ?????????????????????????????????????????????????? | | ?????????????????????????????????????????????????? | | ?????????????????????????????????????????????????? | | ?????????????????????????????????????????????????? | | ?????????????????????????????????????????????????? | | ?????????????????????????????????????????????????? | | ?????????????????????????????????????????????????? | | ?????????????????????????????????????????????????? | | ?????????????????????????????????????????????????? | +----------------------------------------------------+ Best States ------------- Heat Dissipation 45 Energy Generation 14 Energy Capacity 250 Matter Stores 300 Matter Capacity 300 Sight Range 16 Terrain Scan Density 10 Armor Coverage 150 Resistance: KI 35 Resistance: TH 35 Resistance: EX 35 Resistance: EM 35 Resistance: I 35 Resistance: S 35 Resistance: P 35 Propulsion Shielding 33 Evasion (%) 55 Targeting Accuracy 5 Offensive Hacking 20 Item Schematics ----------------- None Robot Schematics ------------------ None Fabricated ------------ Nothing Alien Tech Used ----------------- None Achievements -------------- None Challenges ------------ None Game ------ Seed DeepCannonClaws Manual? 0 Play Time 00:26:39 Cumulative 128.2 hours Start 2024.01.30 @ 07:21:12 End 2024.02.01 @ 10:15:51 Sessions 7 Manual Loads 0 Difficulty Explorer Special Mode None Game No. 108 Rogue 102 Adventurer 0 Explorer 6 Win Type - Total 3 Types 3/0/0/0/0/0/0/0/0 Lore% 41 Gallery% 54 Achievement% 46 Wizard Run 0 Options --------- ASCII 0 Keyboard 0 Movement Numpad Keybinds 0 Fullscreen 1 Font 18/X11Bold Map View 76x50 Zoom Use 0% Tactical HUD 1 Map Filters NONE Filters NONE Steam 1 RUN: 01601e02-fb6f-4f3b-ba2e-fac7a0551a14